bitfinex/quotes_SOLUSD_20240708
["timestamp","ask_amount","ask_price","bid_price","bid_amount"]
[1720467594719,9.18,138.17,138.12,9.18]
[1720467595195,9.18,138.18,138.13,9.18]
[1720467596285,16.4169,138.18,138.13,9.18]
[1720467599216,9.18,138.18,138.13,9.18]
[1720467600098,21.613,138.19,138.14,9.18]
[1720467600295,30.793,138.19,138.12,7.2396]
[1720467600732,30.793,138.19,138.14,9.18]
[1720467600945,21.613,138.19,138.15,9.18]
[1720467601227,21.613,138.19,138.16,9.18]
[1720467601931,21.613,138.19,138.15,9.18]
[1720467604204,21.613,138.19,138.16,9.18]
[1720467606303,21.613,138.19,138.15,9.18]
[1720467606510,21.613,138.19,138.14,0.17]
[1720467606833,21.613,138.19,138.15,9.18]
[1720467608110,30.793,138.19,138.14,9.18]
[1720467608422,9.18,138.17,138.12,9.18]
[1720467608626,16.4172,138.18,138.12,9.18]
[1720467610124,21.613,138.19,138.13,9.18]
[1720467610316,21.613,138.19,138.14,9.18]
[1720467611036,21.613,138.19,138.15,9.18]
[1720467611239,21.613,138.19,138.16,9.18]
[1720467613248,6.4465,138.23,138.18,16.4165]
[1720467613536,7.2325,138.27,138.22,9.18]
[1720467613537,22.3568,138.27,138.22,9.18]
[1720467613712,22.3568,138.27,138.2,7.2356]
[1720467613713,22.3568,138.27,138.25,9.18]
[1720467614032,22.3568,138.27,138.26,9.18]
[1720467614332,6.4465,138.27,138.26,9.18]
[1720467614722,6.4465,138.27,138.23,7.2342]
[1720467615239,6.4465,138.27,138.21,43.6133]
[1720467615438,6.4465,138.27,138.19,0.17]
[1720467615629,6.4465,138.27,138.19,27.576]
[1720467615821,6.4465,138.27,138.2,7.2358]
[1720467616023,6.4465,138.27,138.21,0.17]
[1720467617045,6.4465,138.27,138.21,7.2351]
[1720467617231,6.4465,138.27,138.22,0.17]
[1720467617631,6.4465,138.27,138.22,18.0867]
[1720467617830,6.4465,138.27,138.23,0.17]
[1720467618642,6.4465,138.27,138.22,25.3213]
[1720467619136,6.4465,138.27,138.22,18.0867]
[1720467619723,6.4465,138.27,138.23,0.17]
[1720467620119,6.4465,138.27,138.22,18.0867]
[1720467620319,6.4465,138.27,138.19,20.0]
[1720467620540,6.4465,138.27,138.19,27.2363]
[1720467620862,22.3779,138.26,138.17,16.0363]
[1720467621022,7.2334,138.25,138.17,18.0934]
[1720467621217,7.2338,138.24,138.16,18.29]
[1720467621545,6.5554,138.22,138.14,41.029]
[1720467621845,13.7904,138.22,138.14,18.0965]
[1720467622024,13.7904,138.22,138.13,25.5293]
[1720467622025,7.2354,138.21,138.13,25.5293]
[1720467622349,15.3696,138.2,138.12,7.2399]
[1720467625159,15.3696,138.2,138.13,18.0986]
[1720467626124,15.3696,138.2,138.13,25.338]
[1720467626323,15.3696,138.2,138.13,18.0986]
[1720467626522,15.3696,138.2,138.14,7.2389]
[1720467626742,15.3696,138.2,138.13,18.0986]
[1720467626930,22.6055,138.2,138.12,0.17]
[1720467627145,22.6058,138.2,138.12,0.17]
[1720467627346,6.2203,138.18,138.11,7.2405]
[1720467628837,6.2203,138.18,138.12,7.2399]
[1720467630448,6.2203,138.18,138.13,7.2394]
[1720467630838,6.2203,138.18,138.14,18.2671]
[1720467631535,6.2203,138.18,138.16,7.2379]
[1720467632749,6.2203,138.18,138.15,7.2383]
[1720467633053,6.4079,138.21,138.17,0.17]
[1720467633440,6.4079,138.21,138.18,7.2365]
[1720467633637,6.4079,138.21,138.17,0.17]
[1720467633638,6.4079,138.21,138.17,7.4072]
[1720467634755,6.4079,138.21,138.17,0.17]
[1720467636263,6.2158,138.25,138.2,7.2354]
[1720467636444,6.2158,138.25,138.21,0.17]
[1720467639872,6.2158,138.25,138.2,0.17]
[1720467640653,6.2158,138.25,138.2,7.2358]
[1720467641066,6.2158,138.25,138.21,0.17]
[1720467644782,6.6565,138.28,138.23,0.17]
[1720467645067,6.6565,138.28,138.21,120.17]
[1720467645068,6.6565,138.28,138.22,0.17]
[1720467645370,6.6565,138.28,138.21,120.34]
[1720467645848,6.6565,138.28,138.23,7.2342]
[1720467646049,6.6565,138.28,138.24,0.17]
[1720467646247,6.6565,138.28,138.24,25.4871]
[1720467646747,6.6565,138.28,138.24,0.17]
[1720467647561,16.2636,138.3,138.26,0.17]
[1720467648268,16.2636,138.3,138.23,36.3757]
[1720467648472,16.2636,138.3,138.24,0.17]
[1720467649474,7.2314,138.29,138.22,0.17]
[1720467649765,23.4944,138.3,138.22,0.17]
[1720467649974,16.2636,138.3,138.22,7.4048]
[1720467650176,16.2636,138.3,138.24,0.17]
[1720467650568,16.2636,138.3,138.22,25.4914]
[1720467650759,23.4943,138.3,138.22,18.2568]
[1720467650960,23.4943,138.3,138.22,25.4915]
[1720467651852,6.071,138.29,138.22,18.2568]
[1720467652054,13.3021,138.29,138.19,18.0901]
[1720467652269,13.3021,138.29,138.2,20.0]
[1720467652770,6.071,138.29,138.21,7.235]
[1720467653564,13.3023,138.29,138.21,7.235]
[1720467654071,6.071,138.29,138.21,7.235]
[1720467654282,6.071,138.29,138.22,7.4046]
[1720467654667,6.071,138.29,138.21,25.3233]
[1720467654863,13.3022,138.29,138.21,25.3233]
[1720467655275,6.071,138.29,138.21,25.3233]
[1720467655477,13.3022,138.29,138.21,25.3233]
[1720467655680,13.3022,138.29,138.21,18.0882]
[1720467657384,13.3022,138.29,138.21,25.3234]
[1720467658766,23.97822769,138.3,138.15,100.0]
[1720467658767,6.3291,138.23,138.15,100.0]
[1720467658977,6.3291,138.23,138.19,9.15]
[1720467659163,6.3291,138.23,138.2,9.15]
[1720467659360,6.3291,138.23,138.2,7.2358]
[1720467659676,6.3291,138.23,138.21,9.15]
[1720467660375,23.5281,138.28,138.23,7.2339]
[1720467660376,6.0257,138.27,138.23,7.2339]
[1720467660566,6.0257,138.27,138.25,9.15]
[1720467660769,6.0257,138.27,138.22,9.15]
[1720467661072,6.0257,138.27,138.23,9.15]
[1720467663288,6.0257,138.27,138.2,0.17]
[1720467663476,9.15,138.26,138.2,0.17]
[1720467663677,9.15,138.26,138.21,9.15]
[1720467663871,6.0257,138.27,138.23,9.15]
[1720467664281,6.0257,138.27,138.24,9.15]
[1720467664474,6.0257,138.27,138.23,9.15]
[1720467665090,6.0257,138.27,138.19,7.2361]
[1720467665394,9.15,138.26,138.21,9.15]
[1720467665559,16.3835,138.25,138.17,25.3298]
[1720467665770,9.15,138.25,138.2,9.15]
[1720467665984,16.3834,138.25,138.2,9.15]
[1720467666190,9.15,138.24,138.19,9.15]
[1720467667194,6.0965,138.22,138.11,276.2703]
[1720467667368,6.0965,138.22,138.14,9.15]
[1720467667575,9.15,138.19,138.14,9.15]
[1720467667774,30.6089,138.18,138.09,7.2411]
[1720467668087,9.15,138.17,138.12,9.15]
[1720467668405,21.4589,138.18,138.11,7.2405]
[1720467668406,30.6089,138.18,138.13,9.15]
[1720467668775,30.6089,138.18,138.12,9.15]
[1720467669090,30.6089,138.18,138.14,9.15]
[1720467669091,21.4589,138.18,138.14,9.15]
[1720467669299,21.4589,138.18,138.15,9.15]
[1720467670280,21.4589,138.18,138.14,9.15]
[1720467670590,6.062,138.21,138.15,7.408]
[1720467671289,6.062,138.21,138.12,7.4096]
[1720467671290,13.2977,138.21,138.12,7.4096]
[1720467672295,13.2977,138.21,138.13,7.2395]
[1720467672474,13.2977,138.21,138.14,0.17]
[1720467672796,6.062,138.21,138.14,7.4088]
[1720467673675,6.062,138.21,138.14,0.17]
[1720467674091,13.2978,138.21,138.14,0.17]
[1720467674299,6.062,138.21,138.14,0.17]
[1720467674971,7.2363,138.2,138.11,7.2405]
[1720467675176,7.2365,138.19,138.11,7.2405]
[1720467675486,7.236,138.2,138.12,7.2399]
[1720467676800,7.2364,138.19,138.11,7.4104]
[1720467677293,6.4728,138.17,138.07,18.1055]
[1720467677486,7.238,138.16,138.08,7.2421]
[1720467677982,6.4728,138.17,138.08,7.2421]
[1720467678298,6.4728,138.17,138.1,7.2407]
[1720467678503,6.4728,138.17,138.11,0.17]
[1720467678886,13.7107,138.17,138.09,18.1035]
[1720467680097,13.7107,138.17,138.09,25.3451]
[1720467680400,13.7107,138.17,138.09,18.1035]
[1720467680909,7.2381,138.16,138.08,7.4119]
[1720467681085,7.2381,138.16,138.09,0.17]
[1720467682780,6.4728,138.17,138.09,0.34]
[1720467683298,13.7103,138.17,138.09,7.4116]
[1720467683493,6.4728,138.17,138.09,7.4116]
[1720467683703,6.4728,138.17,138.09,0.17]
[1720467684079,7.2382,138.16,138.09,0.17]
[1720467684283,20.87551082,138.17,138.08,7.4118]
[1720467685386,20.87551082,138.17,138.09,7.2416]
[1720467685600,13.63791082,138.17,138.09,7.2416]
[1720467687008,13.63791082,138.17,138.1,7.2407]
[1720467687213,13.63791082,138.17,138.09,25.3454]
[1720467687418,20.87531082,138.17,138.09,25.3454]
[1720467687617,13.63791082,138.17,138.09,25.3454]
[1720467687986,13.63791082,138.17,138.1,7.241]
[1720467688989,13.63791082,138.17,138.09,7.2411]
[1720467689186,13.63791082,138.17,138.09,25.3454]
[1720467690626,9.17,138.16,138.11,9.17]
[1720467690996,9.17,138.16,138.09,18.104]
[1720467691195,9.17,138.15,138.1,9.17]
[1720467692023,22.80791082,138.17,138.11,9.17]
[1720467692520,16.2957,138.18,138.16,9.17]
[1720467692906,6.5236,138.2,138.16,9.17]
[1720467693414,6.5236,138.2,138.15,7.2383]
[1720467693415,6.5236,138.2,138.17,9.17]
[1720467694307,6.5236,138.2,138.16,9.17]
[1720467694508,6.5236,138.2,138.14,7.4088]
[1720467696493,6.5236,138.2,138.16,0.17]
[1720467696695,6.5236,138.2,138.16,7.2379]
[1720467697616,6.5236,138.2,138.16,0.17]
[1720467698122,6.5236,138.2,138.13,0.34]
[1720467698431,6.5236,138.2,138.13,27.5792]
[1720467699729,6.5236,138.2,138.13,27.4092]
[1720467701104,6.5236,138.2,138.15,0.17]
[1720467702713,6.5236,138.2,138.15,7.4081]
[1720467703128,6.5236,138.2,138.16,7.2379]
[1720467703632,6.5236,138.2,138.15,7.4083]
[1720467704611,6.5236,138.2,138.16,7.2379]
[1720467706535,6.5236,138.2,138.15,7.4083]
[1720467708110,6.5236,138.2,138.17,0.17]
[1720467708310,6.5236,138.2,138.17,7.4073]
[1720467708710,6.5236,138.2,138.14,18.49]
[1720467708918,6.5236,138.2,138.15,20.34]
[1720467709731,6.5236,138.2,138.15,27.5784]
[1720467712134,6.5236,138.2,138.15,45.6746]
[1720467712434,6.5236,138.2,138.16,7.2378]
[1720467712606,6.5236,138.2,138.18,7.2367]
[1720467713233,6.5236,138.2,138.09,15.4289]
[1720467713453,6.5236,138.2,138.1,118.1016]
[1720467713733,6.5236,138.2,138.1,100.0]
[1720467714437,6.5236,138.2,138.12,25.3397]
[1720467714637,15.6836,138.2,138.14,9.16]
[1720467715342,6.5236,138.2,138.14,16.3989]
[1720467715638,6.5236,138.2,138.15,9.16]
[1720467715843,15.6836,138.2,138.15,9.16]
[1720467716225,6.5236,138.2,138.15,9.16]
[1720467720413,6.5236,138.2,138.17,9.16]
[1720467721328,6.5236,138.2,138.13,0.17]
[1720467721527,6.5236,138.2,138.16,9.16]
[1720467723033,6.5236,138.2,138.13,25.5081]
[1720467723228,9.16,138.19,138.11,0.17]
[1720467723434,9.16,138.19,138.14,9.16]
[1720467723735,6.5236,138.2,138.13,0.17]
[1720467723921,6.5236,138.2,138.16,9.16]
[1720467724126,6.5236,138.2,138.17,9.16]
[1720467725020,6.5236,138.2,138.18,9.16]
[1720467725351,6.5236,138.2,138.19,9.16]
[1720467727242,15.5927,138.22,138.19,9.16]
[1720467727544,6.1203,138.24,138.21,9.16]
[1720467729535,6.1203,138.24,138.2,9.16]
[1720467730149,6.1203,138.24,138.19,7.4063]
[1720467730444,6.1203,138.24,138.21,9.16]
[1720467731145,6.1203,138.24,138.2,9.16]
[1720467731655,6.1203,138.24,138.15,18.0953]
[1720467731942,9.16,138.23,138.18,9.16]
[1720467732139,9.16,138.23,138.17,9.16]
[1720467732340,9.16,138.23,138.18,9.16]
[1720467734049,9.16,138.23,138.17,9.16]
[1720467735626,9.16,138.23,138.17,16.3974]
[1720467736333,9.16,138.23,138.17,9.16]
[1720467736530,9.16,138.2,138.12,18.0991]
[1720467736742,9.16,138.19,138.14,9.16]
[1720467736946,9.16,138.19,138.13,9.16]
[1720467737247,6.6546,138.18,138.13,9.16]
[1720467737549,6.6546,138.18,138.13,16.3995]
[1720467739852,15.8146,138.18,138.13,16.3995]
[1720467741351,6.6546,138.18,138.13,16.3995]
[1720467742457,6.6546,138.18,138.13,7.2395]
[1720467742646,15.8146,138.18,138.13,16.3995]
[1720467743358,6.6546,138.18,138.14,9.16]
[1720467744352,6.6546,138.18,138.14,34.4965]
[1720467745061,15.8146,138.18,138.13,0.17]
[1720467745243,15.8146,138.18,138.13,16.5692]
[1720467745450,6.6546,138.18,138.14,16.3989]
[1720467746364,6.6546,138.18,138.15,16.3984]
[1720467746749,6.6546,138.18,138.15,9.16]
[1720467750463,6.6546,138.18,138.14,16.3987]
[1720467752060,6.6546,138.18,138.14,9.16]
[1720467753078,6.6546,138.18,138.13,0.17]
[1720467753362,6.6546,138.18,138.13,9.33]
[1720467753549,15.8146,138.18,138.13,9.33]
[1720467753749,15.8146,138.18,138.13,16.5695]
[1720467754068,16.0467,138.17,138.13,0.17]
[1720467754370,9.16,138.16,138.11,9.16]
[1720467754563,9.16,138.16,138.08,118.1042]
[1720467754564,9.16,138.14,138.09,16.4016]
[1720467754955,9.16,138.15,138.1,9.16]
[1720467755352,9.16,138.15,138.1,16.401]
[1720467756463,9.16,138.15,138.1,9.16]
[1720467757453,9.16,138.15,138.09,0.17]
[1720467757652,9.16,138.15,138.09,9.33]
[1720467758169,9.16,138.16,138.1,16.4008]
[1720467760157,16.0467,138.17,138.12,9.16]
[1720467760158,25.2067,138.17,138.12,9.16]
[1720467761174,16.0467,138.17,138.12,9.16]
[1720467762069,25.2067,138.17,138.12,9.16]
[1720467762287,16.0467,138.17,138.13,0.17]
[1720467762459,25.2067,138.17,138.12,9.16]
[1720467762655,25.2067,138.17,138.11,0.17]
[1720467762850,25.2067,138.17,138.11,9.33]
[1720467763057,25.2067,138.17,138.11,16.5701]
[1720467763251,25.2067,138.17,138.12,16.4]
[1720467763757,25.2067,138.17,138.12,9.16]
[1720467764558,25.2067,138.17,138.11,0.17]
[1720467764759,25.2067,138.17,138.11,9.33]
[1720467765877,25.2067,138.17,138.11,16.5705]
[1720467766065,16.0467,138.17,138.12,16.3996]
[1720467766259,16.0467,138.17,138.13,16.3993]
[1720467766494,16.0467,138.17,138.14,9.33]
[1720467766996,16.0467,138.17,138.13,16.3993]
[1720467767588,16.0467,138.17,138.14,0.17]
[1720467767890,16.0467,138.17,138.14,9.33]
[1720467771066,16.0467,138.17,138.14,9.16]
[1720467776097,16.0467,138.17,138.13,9.16]
[1720467777372,16.0467,138.17,138.14,0.17]
[1720467777572,12.71713168,138.21,138.16,9.16]
[1720467777573,16.2938,138.21,138.16,9.16]
[1720467777791,16.2938,138.21,138.17,0.17]
[1720467777989,16.2938,138.21,138.17,9.33]
[1720467778194,16.2938,138.21,138.18,9.16]
[1720467778374,6.6287,138.22,138.18,9.16]
[1720467780702,6.6287,138.22,138.17,9.33]
[1720467781786,15.7887,138.22,138.17,9.16]
[1720467781984,9.16,138.21,138.14,0.17]
[1720467782184,9.16,138.19,138.1,118.1015]
[1720467782388,9.16,138.19,138.14,9.16]
[1720467783699,9.16,138.19,138.14,27.2572]
[1720467783875,6.6287,138.22,138.15,9.16]
[1720467784081,9.16,138.21,138.15,16.3983]
[1720467784784,9.16,138.21,138.15,9.16]
[1720467785108,9.16,138.2,138.15,9.16]
[1720467785808,9.16,138.2,138.15,16.3985]
[1720467787188,9.16,138.21,138.16,9.16]
[1720467790686,9.16,138.21,138.15,0.17]
[1720467790890,9.16,138.21,138.16,9.16]
[1720467791804,6.6287,138.22,138.17,9.16]
[1720467791993,6.6287,138.22,138.18,9.16]
[1720467793692,15.7887,138.22,138.17,9.33]
[1720467793898,6.6287,138.22,138.17,9.33]
[1720467795193,6.6287,138.22,138.18,9.16]
[1720467796598,16.93175492,138.24,138.19,7.4063]
[1720467796806,16.93175492,138.24,138.19,16.5663]
[1720467797008,16.93175492,138.24,138.2,9.16]
[1720467797308,6.3252,138.26,138.2,16.3957]
[1720467797503,6.3252,138.26,138.21,9.16]
[1720467797905,15.4852,138.26,138.21,9.16]
[1720467798802,6.3252,138.26,138.21,9.16]
[1720467798998,15.4852,138.26,138.21,9.16]
[1720467800197,15.4852,138.26,138.19,7.4062]
[1720467800409,9.16,138.25,138.2,9.16]
[1720467802695,9.16,138.23,138.2,7.2357]
[1720467803014,6.3252,138.26,138.19,18.0906]
[1720467803015,6.3252,138.26,138.21,9.16]
[1720467803713,6.3252,138.26,138.21,16.3952]
[1720467804110,15.4852,138.26,138.21,9.16]
[1720467804302,15.4852,138.26,138.21,16.3952]
[1720467804705,15.4852,138.26,138.21,9.16]
[1720467805123,9.16,138.25,138.2,16.3956]
[1720467805919,15.4852,138.26,138.21,9.16]
[1720467810208,6.3252,138.26,138.21,27.2478]
[1720467810410,15.4852,138.26,138.21,27.2478]
[1720467810628,15.4852,138.26,138.21,34.483]
[1720467811417,9.16,138.25,138.19,0.17]
[1720467811625,9.16,138.25,138.19,7.406]
[1720467811821,9.16,138.25,138.2,7.2358]
[1720467812236,9.16,138.25,138.2,16.3958]
[1720467813117,6.3252,138.26,138.2,16.3958]
[1720467813318,9.16,138.25,138.2,16.3958]
[1720467813517,15.4852,138.26,138.2,16.3958]
[1720467814438,15.4852,138.26,138.21,7.2352]
[1720467814819,15.4852,138.26,138.21,16.3952]
[1720467815619,6.3252,138.26,138.22,7.2347]
[1720467815817,6.3252,138.26,138.23,7.2342]
[1720467816033,6.3252,138.26,138.22,27.247]
[1720467816824,6.3252,138.26,138.22,34.4816]
[1720467817255,6.3252,138.26,138.21,9.16]
[1720467817425,15.4852,138.26,138.21,9.16]
[1720467817745,15.4852,138.26,138.21,16.3952]
[1720467818826,9.16,138.25,138.2,9.16]
[1720467819023,6.3252,138.26,138.21,9.16]
[1720467819228,6.3252,138.26,138.21,16.395]
[1720467819820,15.4852,138.26,138.21,16.395]
[1720467820340,15.4852,138.26,138.23,7.2341]
[1720467820540,6.3252,138.26,138.22,27.2469]
[1720467821132,6.3252,138.26,138.22,34.4815]
[1720467822943,0.49865492,138.28,138.23,7.4039]
[1720467823149,0.49865492,138.28,138.24,16.3937]
[1720467823845,9.16,138.29,138.24,16.3937]
[1720467827941,6.82925492,138.31,138.25,7.4029]
[1720467828139,9.16,138.3,138.25,16.5629]
[1720467828447,9.16,138.29,138.24,27.2439]
[1720467828845,9.16,138.29,138.24,18.0839]
[1720467829350,9.16,138.28,138.24,18.0839]
[1720467829535,9.16,138.29,138.24,18.0839]
[1720467830541,6.82925492,138.31,138.24,25.3176]
[1720467830742,9.16,138.29,138.24,25.3176]
[1720467831240,9.16,138.29,138.24,18.0839]
[1720467831449,9.16,138.29,138.24,25.3176]
[1720467833264,9.16,138.3,138.25,7.2331]
[1720467833579,9.16,138.3,138.24,34.4774]
[1720467834452,6.82925492,138.31,138.25,7.2331]
[1720467834838,9.16,138.3,138.25,7.2331]
[1720467835030,6.82925492,138.31,138.25,7.2331]
[1720467835234,9.16,138.3,138.25,16.3931]
[1720467835550,9.16,138.3,138.25,7.2331]
[1720467836557,6.82925492,138.31,138.25,7.2331]
[1720467836753,9.16,138.3,138.26,7.2324]
[1720467837557,9.16,138.3,138.25,16.393]
[1720467838365,9.16,138.3,138.24,25.3175]
[1720467838661,9.16,138.29,138.24,9.16]
[1720467839537,9.16,138.29,138.23,25.3199]
[1720467839744,9.16,138.28,138.23,18.0857]
[1720467839949,9.16,138.28,138.23,27.2457]
[1720467840139,9.16,138.28,138.23,34.4799]
[1720467840961,9.16,138.28,138.24,7.2337]
[1720467841346,9.16,138.29,138.24,16.3937]
[1720467841541,9.16,138.26,138.2,18.0885]
[1720467841741,9.16,138.25,138.2,25.324]
[1720467842267,15.8054,138.26,138.21,9.16]
[1720467842864,15.8054,138.26,138.21,16.3952]
[1720467843068,15.8054,138.26,138.22,7.2346]
[1720467843359,6.6454,138.26,138.22,16.3946]
[1720467844157,16.1553,138.28,138.22,16.3946]
[1720467844344,25.3153,138.28,138.22,16.3946]
[1720467845059,25.3153,138.28,138.23,16.3943]
[1720467845258,6.4924,138.29,138.23,16.3943]
[1720467845445,15.6524,138.29,138.23,16.3943]
[1720467846666,15.6524,138.29,138.23,9.16]
[1720467846869,9.16,138.28,138.23,9.16]
[1720467847363,9.16,138.27,138.22,34.4806]
[1720467849669,9.16,138.27,138.22,25.3206]
[1720467849873,9.16,138.27,138.22,18.0859]
[1720467850746,9.16,138.27,138.22,25.3206]
[1720467853291,6.4924,138.29,138.19,33.1986]
[1720467853460,9.16,138.25,138.19,49.5946]
[1720467853967,9.16,138.24,138.2,7.2358]
[1720467854280,9.16,138.24,138.19,33.1986]
[1720467854453,9.16,138.23,138.19,40.4347]
[1720467856558,9.16,138.23,138.2,7.2355]
[1720467856763,7.5717,138.28,138.19,42.3586]
[1720467856764,9.16,138.24,138.19,42.3586]
[1720467857370,9.16,138.24,138.2,7.2355]
[1720467858605,9.16,138.23,138.19,40.4348]
[1720467858768,9.16,138.24,138.19,40.4348]
[1720467860494,9.16,138.23,138.19,40.4348]
[1720467862090,7.5718,138.28,138.2,7.2357]
[1720467862294,9.16,138.24,138.2,7.2357]
[1720467862894,9.16,138.24,138.19,49.5947]
[1720467865287,9.16,138.23,138.19,33.1986]
[1720467866875,9.16,138.22,138.17,18.0936]
[1720467867291,9.16,138.21,138.17,25.3307]
[1720467868178,9.16,138.21,138.17,25.3308]
[1720467868381,9.16,138.2,138.16,23.036]
[1720467868573,9.16,138.19,138.14,18.0964]
[1720467868778,9.16,138.19,138.15,20.0]
[1720467869781,9.16,138.19,138.16,7.2376]
[1720467869978,22.7762,138.22,138.14,25.3349]
[1720467870182,9.16,138.17,138.14,25.3349]
[1720467870982,9.16,138.17,138.14,18.0964]
[1720467872095,0.17,138.21,138.14,25.3353]
[1720467872284,9.16,138.18,138.15,7.2384]
[1720467872485,9.16,138.19,138.16,7.2379]
[1720467872687,9.16,138.19,138.15,7.2383]
[1720467872896,9.16,138.18,138.15,7.2383]
[1720467873087,9.16,138.18,138.14,25.3353]
[1720467875406,9.16,138.18,138.14,18.0964]
[1720467875892,9.16,138.18,138.14,25.3353]
[1720467876408,9.16,138.18,138.14,18.0964]
[1720467876707,15.5413,138.22,138.14,18.0964]
[1720467876916,9.16,138.19,138.14,27.2564]
[1720467877087,9.16,138.19,138.14,34.4952]
[1720467878803,7.70794206,138.23,138.16,7.2378]
[1720467879113,9.16,138.21,138.16,7.2378]
[1720467879812,9.16,138.21,138.15,16.3983]
[1720467880515,9.16,138.2,138.15,0.17]
[1720467880709,9.16,138.2,138.14,27.2564]
[1720467881304,9.16,138.19,138.14,27.2564]
[1720467881504,9.16,138.19,138.14,34.4954]
[1720467884598,9.16,138.18,138.13,0.17]
[1720467885621,9.16,138.18,138.13,7.4094]
[1720467886801,9.16,138.18,138.13,25.5082]
[1720467887602,9.16,138.18,138.14,7.2389]
[1720467891623,9.16,138.17,138.13,18.0988]
[1720467891822,9.16,138.17,138.12,23.6301]
[1720467892129,9.16,138.16,138.12,16.3905]
[1720467892516,9.16,138.16,138.12,23.6305]
[1720467893022,9.16,138.16,138.13,7.2395]
[1720467893223,9.16,138.17,138.13,7.2395]
[1720467893609,9.16,138.17,138.12,50.8902]
[1720467893810,9.16,138.16,138.12,41.7302]
[1720467895421,22.4323,138.2,138.1,25.3436]
[1720467895422,7.2369,138.18,138.1,25.3436]
[1720467895830,9.16,138.14,138.1,25.3436]
[1720467897111,13.7003,138.19,138.11,7.2405]
[1720467897438,9.16,138.16,138.11,16.4005]
[1720467897726,9.16,138.15,138.1,34.5036]
[1720467897927,9.16,138.16,138.1,34.5036]
[1720467900718,9.16,138.16,138.1,25.3436]
[1720467900921,9.16,138.14,138.09,15.1155]
[1720467901114,9.16,138.16,138.07,18.106]
[1720467901316,9.16,138.11,138.05,41.7981]
[1720467901524,9.16,138.08,138.05,16.4453]
[1720467901729,9.16,138.07,138.02,43.7173]
[1720467902046,9.16,138.07,138.02,50.9624]
[1720467902533,9.16,138.06,138.02,16.4453]
[1720467902923,9.16,138.05,138.02,16.4453]
[1720467903510,6.1507,138.09,138.02,16.4453]
[1720467903713,9.16,138.07,138.03,7.2446]
[1720467903922,9.16,138.07,138.03,25.3563]
[1720467904126,9.16,138.08,138.03,25.3563]
[1720467904611,6.1507,138.09,138.04,7.4137]
[1720467904812,6.1507,138.13,138.06,0.17]
[1720467905011,5.48163168,138.15,138.09,7.2415]
[1720467905218,9.16,138.14,138.09,16.4015]
[1720467905534,9.16,138.13,138.08,31.9718]
[1720467905731,9.16,138.12,138.08,15.5698]
[1720467905929,7.2398,138.13,138.05,9.16]
[1720467906128,9.16,138.1,138.05,9.16]